[Event "Oceania Zonal Open 2023"]
[Site "Melbourne"]
[Date "2023.01.26"]
[Round "6.5"]
[White "Morris, James"]
[Black "Bayaca, Sterling"]
[Result "1/2-1/2"]
[ECO "C84"]
[WhiteElo "2456"]
[BlackElo "2054"]
[Annotator "TA"]
[PlyCount "112"]
[EventDate "2023.01.09"]
[EventType "swiss"]
[EventCountry "AUS"]
[SourceTitle "playchess.com"]
[Source "ChessBase"]
[SourceQuality "1"]
[TimeControl "5400+30"]

{[%evp 12,112,38,0,14,13,20,20,41,30,32,25,34,31,49,41,70,29,29,29,31,36,43,12,37,-23,10,-41,3,3,0,0,3,0,14,16,25,16,17,22,44,14,13,11,27,11,23,0,26,0,0,0,27,20,39,39,39,39,39,39,39,39,39,39,44,31,34,41,63,65,94,99,97,93,214,206,207,77,112,41,39,-8,-8,-28,0,0,0,0,0,0,0,0,0,0,0,0,0,0,0,0,0,0,0]} 1. e4 {[%emt 0:00:03]} e5 {[%emt 0:00:07]} 2. Nf3 {[%emt 0:00:08]} Nc6 {[%emt 0:00:07]} 3. Bb5 {[%emt 0:00:04]} a6 {[%emt 0:00:08]} 4. Ba4 {[%emt 0:00:07]} Nf6 {[%emt 0:00:07]} 5. O-O {[%emt 0:00:07]} Be7 {[%emt 0:00:06]} 6. d3 {[%emt 0:00:13]} d6 {[%emt 0:00:12]} 7. c4 {[%emt 0:02:09]} O-O {[%emt 0:00:21] C84: Closed Ruy Lopez: Unusual White 6th moves.} 8. h3 {[%emt 0:01:01]} h6 {[%emt 0:01:59]} 9. Nc3 {[%emt 0:00:16]} Nh7 {[%emt 0:04:22]} 10. d4 {[%emt 0:06:44] [#]} Nxd4 $146 {[%emt 0:09:21]} ({Predecessor:} 10... Bf6 11. Bxc6 bxc6 12. dxe5 dxe5 13. Qa4 Qd6 14. b3 Be7 15. Qa5 Qb4 16. Qxb4 Bxb4 {1-0 Tirard,H (2443)-Plachetka,J (2351) Avoine op 25th 2010 (4)}) 11. Nxd4 {[%emt 0:00:05]} exd4 {[%emt 0:00:07]} 12. Qxd4 {[%emt 0:00:08]} Bd7 {[%emt 0:08:06]} 13. Bc2 {[%emt 0:00:52]} Re8 {[%emt 0:05:57]} 14. Nd5 {[%emt 0:12:01] White is more active.} Nf6 {[%emt 0:09:25][%cal Bh7f6,Bf6d7,Bd7e5,Be5g6][%mdl 32]} 15. Nxe7+ {[%emt 0:00:25]} Qxe7 {[%emt 0:00:03]} 16. Re1 {[%emt 0:03:09]} Bc6 {[%emt 0:02:50]} 17. Bf4 {[%emt 0:05:27]} Nd7 {[%emt 0:05:44]} (17... Nxe4 $2 18. Bxe4 Bxe4 19. f3 $18) (17... Nh5 $5 {[%cal Rh5f4]} 18. Be3 Qh4 $11) 18. Qd3 {[%emt 0:15:15]} ({Better is} 18. Re3 $14) 18... Ne5 {[%emt 0:04:09]} (18... Qf6 $5 {[%cal Rf6f4]} 19. e5 Nxe5 20. Qh7+ Kf8 $11) 19. Qg3 {[%emt 0:00:08]} (19. Qc3 $11) 19... Ng6 {[%emt 0:04:55]} 20. Bd2 {[%emt 0:10:06][%cal Bf4d2,Bd2c3,Bc3d4][%mdl 32]} Qe5 {[%emt 0:05:06]} 21. Qc3 {[%emt 0:00:22]} Re7 {[%emt 0:02:55]} 22. Re3 {[%emt 0:04:54]} Qxc3 {[%emt 0:04:40]} 23. Bxc3 {[%emt 0:00:06]} Rae8 {[%emt 0:00:05][%cal Rc6e4]} 24. Rae1 {[%emt 0:00:21]} Ne5 {[%emt 0:01:14]} 25. b3 {[%emt 0:00:21]} Nd7 {[%emt 0:01:58]} 26. Bd4 {[%emt 0:02:18]} a5 {[%emt 0:03:33]} 27. f3 {[%emt 0:00:34]} b6 {[%emt 0:00:13]} 28. Kf2 {[%emt 0:00:05]} f6 {[%emt 0:00:53]} 29. Rg1 {[%emt 0:01:25]} Nf8 {[%emt 0:02:29]} 30. Ree1 {[%emt 0:00:26]} Kf7 {[%emt 0:01:56]} 31. h4 {[%emt 0:00:51]} Ne6 {[%emt 0:01:41]} 32. Be3 {[%emt 0:00:59]} Ra8 {[%emt 0:01:13]} 33. g4 {[%emt 0:03:04]} Ree8 {[%emt 0:00:16]} 34. Bd2 {[%emt 0:07:20]} Rab8 {[%emt 0:01:43]} 35. h5 {[%emt 0:01:57]} Red8 {[%emt 0:01:08]} 36. Rc1 {[%emt 0:03:15]} Ra8 {[%emt 0:00:32]} 37. Rge1 {[%emt 0:01:27]} Rdb8 {[%emt 0:00:38]} 38. f4 {[%emt 0:00:23]} Rd8 {[%emt 0:00:50]} 39. Kg3 {[%emt 0:00:11]} Rd7 {[%emt 0:02:40]} 40. Bc3 {[%emt 0:00:27]} Nc5 {[%emt 0:01:38]} 41. e5 {[%emt 0:05:42]} dxe5 {[%emt 0:00:32]} 42. fxe5 {[%emt 0:00:05]} fxe5 {[%emt 0:08:18]} (42... Rd3+ $16 {might work better.} 43. Kh4 (43. Bxd3 Nxd3 44. exf6 gxf6 $16) 43... Bg2 44. Bxd3 Nxd3) 43. Rxe5 $18 {[%emt 0:01:16] [#] Strongly threatening Bh7.} (43. Bxe5 Nd3 $14) 43... Rad8 {[%emt 0:00:51]} 44. Bh7 {[%emt 0:01:55] Prevents Rd3+.} (44. Bg6+ $18 Kf8 45. Rf1+ Kg8 46. Re3) 44... Rd3+ {[%emt 0:01:58]} 45. Kh2 {[%emt 0:05:29]} (45. Bxd3 $16 Rxd3+ 46. Kh4) 45... Rf3 $14 {[%emt 0:01:15] [#]} 46. Rce1 {[%emt 0:01:23]} Be4 $11 {[%emt 0:03:35]} 47. Bg6+ {[%emt 0:04:38]} (47. Bxe4 {simplifies} Nxe4 48. R5xe4 Rxc3 49. Re7+) 47... Bxg6 {[%emt 0:00:40]} (47... Kg8 $5 {[%cal Rf3c3]}) 48. Re7+ {[%emt 0:00:01] The position is equal.} Kf8 $1 {[%emt 0:00:14] Threatens to win with ...Be4.} (48... Kg8 $2 49. hxg6 Rdd3 50. Be5 $18 (50. Bxg7 Rh3+ 51. Kg2 Rdg3+ 52. Kf2 Nd3+ 53. Ke2 Rf3 $11) (50. Rxg7+ Kf8 $16)) 49. Bxg7+ {[%emt 0:00:15]} Kg8 {[%emt 0:00:01] And now ...Rd2+ would win.} 50. Bxh6 {[%emt 0:00:46]} (50. hxg6 $5 Rd2+ $8 51. Kg1 Rg3+ 52. Kh1 Rh3+ 53. Kg1 Rg3+ 54. Kh1 Rh3+ 55. Kg1 Rg3+ $11) 50... Rdd3 {[%emt 0:01:09] Hoping for ...Rh3+.} 51. Rg7+ {[%emt 0:00:26]} ({Much worse is} 51. hxg6 Rh3+ 52. Kg2 Rdg3+ 53. Kf1 Rxh6 54. Rxc7 Rf3+ 55. Kg2 Rf8 $17) 51... Kh8 {[%emt 0:00:07] ( -> ...Rh3+)} 52. Rxg6 {[%emt 0:00:01] Re8+ is the strong threat.} Rh3+ {[%emt 0:00:28]} 53. Kg2 {[%emt 0:00:07]} (53. Kg1 $5 Rhg3+ $8 54. Kf2 Rgf3+ 55. Kg2 Rg3+ 56. Kh2 Rh3+ 57. Kg2 Rhg3+ 58. Kh1 Rh3+ 59. Kg2 Rhg3+ $11) 53... Rhg3+ $1 {[%emt 0:00:51]} 54. Kf2 {[%emt 0:02:48]} (54. Kf1 $5 Rgf3+ $8 55. Kg2 Rg3+ 56. Kh1 Rh3+ 57. Kg1 Rhg3+ 58. Kh2 Rh3+ 59. Kg2 Rhg3+ $11) 54... Rgf3+ $1 {[%emt 0:00:06]} 55. Kg2 {[%emt 0:00:15]} (55. Kg1 $5 Rg3+ $8 56. Kh2 Rh3+ 57. Kg2 Rhg3+ 58. Kh1 Rh3+ 59. Kg2 $11) 55... Rg3+ {[%emt 0:00:04]} 56. Kf2 {[%emt 0:00:05]} (56. Kf1 $5 Rgf3+ $8 57. Kg2 Rg3+ $11) 56... Rgf3+ $1 {[%emt 0:00:23] Weighted Error Value: White=0.15 (very precise) /Black=0.12 (very precise)} 1/2-1/2

[Event "Oceania Zonal Open 2023"]
[Site "Melbourne"]
[Date "2023.01.26"]
[Round "6.6"]
[White "Soo, Kai Jie"]
[Black "Bjelobrk, Igor"]
[Result "0-1"]
[ECO "D12"]
[WhiteElo "2046"]
[BlackElo "2405"]
[Annotator "TA"]
[PlyCount "112"]
[EventDate "2023.01.09"]
[EventType "swiss"]
[EventCountry "AUS"]
[SourceTitle "playchess.com"]
[Source "ChessBase"]
[SourceQuality "1"]
[TimeControl "5400+30"]

{[%evp 11,112,7,10,17,16,-4,21,15,14,9,11,11,17,0,8,-35,-25,-35,-33,-31,-30,-38,-28,-39,-30,-33,-27,-27,-35,-62,-15,-15,-14,-55,-55,-90,-60,-46,-52,-22,0,0,0,0,0,0,0,-91,-77,-63,0,0,0,0,0,0,0,0,0,0,0,-27,0,-16,-23,-67,-67,-71,-82,-74,-72,-75,-75,-80,-80,-104,-81,-87,-87,-252,-80,-80,-80,-658,-633,-597,-573,-818,-732,-1530,-1426,-29972,-29973,-29976,-29977,-29977,-29978,-29978,-29979,-29981,-29978,-29986,-29984]} 1. d4 {[%emt 0:01:00]} d5 {[%emt 0:00:12]} 2. c4 {[%emt 0:01:41]} c6 {[%emt 0:00:44]} 3. Nf3 {[%emt 0:01:46]} Nf6 {[%emt 0:00:39][%cal Bg8f6,Bf6e4,Be4d2][%mdl 32]} 4. e3 {[%emt 0:00:17]} Bf5 {[%emt 0:00:31]} 5. Qb3 {[%emt 0:01:02]} Qc7 {[%emt 0:04:06]} 6. Nc3 {[%emt 0:00:15]} e6 {[%emt 0:00:15]} 7. Nh4 {[%emt 0:00:11] now scores much better than the old 7.Bd2. D12: Slav Defence: 3 Nf3 Nf6 4 e3 Bf5.} Be4 {[%emt 0:01:01]} 8. Nxe4 {[%emt 0:02:31]} Nxe4 {[%emt 0:06:56]} 9. Nf3 {[%emt 0:00:11] The position is equal.} Qa5+ {[%emt 0:12:32]} 10. Bd2 {[%emt 0:00:07]} Nxd2 {[%emt 0:00:11]} 11. Nxd2 {[%emt 0:00:09] [#]} Nd7 $146 {[%emt 0:03:03]} ({Predecessor:} 11... Bb4 12. Rd1 Nd7 13. a3 Bxd2+ 14. Rxd2 Rb8 15. Be2 O-O 16. Qc2 Rfe8 17. O-O dxc4 18. Bxc4 {1-0 Lampert,J (2510)-Karlsson,B (2315) PRO League Central rapid 2017 (1)}) 12. cxd5 {[%emt 0:01:06]} (12. Qxb7 $2 {perishes.} Rb8 13. Qxc6 Bb4 $19) 12... cxd5 {[%emt 0:02:42]} 13. Bb5 {[%emt 0:02:17] [#] And now Bxd7+ would win.} Bb4 {[%emt 0:01:25]} 14. Bxd7+ {[%emt 0:00:13]} Kxd7 {[%emt 0:00:09]} 15. Qd3 {[%emt 0:05:44]} Rac8 {[%emt 0:21:41]} 16. Ke2 {[%emt 0:00:36]} Bxd2 {[%emt 0:02:19]} 17. Qxd2 {[%emt 0:00:07]} Qa6+ {[%emt 0:00:55]} 18. Kf3 {[%emt 0:00:09]} Rc6 {[%emt 0:03:51]} 19. Rhc1 {[%emt 0:00:15]} Rhc8 {[%emt 0:05:27]} 20. Rc3 {[%emt 0:00:11]} Qa5 {[%emt 0:06:50]} (20... Rxc3 $15 {should be considered.} 21. bxc3 Ke7) 21. Rac1 $11 {[%emt 0:00:24]} Qxa2 {[%emt 0:02:27]} 22. Ra3 {[%emt 0:05:08]} Qxa3 {[%emt 0:00:15]} 23. Rxc6 {[%emt 0:00:16]} Qb3 {[%emt 0:00:32]} 24. Rxc8 {[%emt 0:00:15]} Kxc8 $15 {[%emt 0:00:03][%mdl 4096] Endgame KQ-KQ} 25. Qa5 $1 {[%emt 0:00:20]} Kd7 {[%emt 0:10:01]} 26. Qxa7 {[%emt 0:02:27]} Qxb2 {[%emt 0:00:08]} 27. Qc5 {[%emt 0:00:07]} Qb1 {[%emt 0:01:20]} 28. Qf8 {[%emt 0:00:52]} Qf5+ {[%emt 0:00:06]} 29. Kg3 {[%emt 0:00:08]} (29. Ke2 $11) 29... Qg6+ {[%emt 0:00:27]} 30. Kf3 {[%emt 0:00:14]} h5 {[%emt 0:03:30]} (30... Qh5+ $15 31. Kg3 Qg6+ 32. Kf3 Qh5+ 33. Kg3 Qg6+) 31. g3 $11 {[%emt 0:03:34]} Qf5+ {[%emt 0:03:24]} 32. Ke2 {[%emt 0:00:09]} b6 {[%emt 0:04:46]} 33. Qb8 {[%emt 0:01:28]} (33. Qxg7 Qg4+ 34. Qxg4 hxg4 $19) 33... Qc2+ {[%emt 0:00:08]} 34. Kf3 {[%emt 0:00:38]} Qb1 {[%emt 0:01:21]} 35. Qf8 {[%emt 0:00:53]} Qf5+ {[%emt 0:00:35]} 36. Ke2 {[%emt 0:00:08]} g6 {[%emt 0:00:06]} 37. h4 {[%emt 0:00:47]} Qf6 {[%emt 0:00:24]} 38. Qb8 {[%emt 0:00:52]} Qd8 $1 {[%emt 0:00:07]} 39. Qa7+ {[%emt 0:02:14]} Qc7 {[%emt 0:00:05]} 40. Qa4+ {[%emt 0:00:20]} Ke7 {[%emt 0:00:05] [#] ...Qc4+ is the strong threat.} 41. Kf3 {[%emt 0:00:26]} Kf6 {[%emt 0:01:25]} 42. Qb5 {[%emt 0:00:30]} Kg7 {[%emt 0:00:07]} 43. Qa6 {[%emt 0:01:00]} Qb8 {[%emt 0:00:04]} 44. Qb5 {[%emt 0:00:09]} Qa7 {[%emt 0:00:02]} 45. g4 $2 {[%emt 0:00:33]} (45. Qe8 $17) 45... hxg4+ $2 {[%emt 0:00:06]} (45... Qa1 $19 {has better winning chances.} 46. Kg2 Qd1 47. gxh5 Qg4+ 48. Kf1 gxh5 49. Qxb6 Qh3+ 50. Ke2 Qxh4) 46. Kxg4 $17 {[%emt 0:00:05]} Qa5 {[%emt 0:00:46]} 47. Qb1 {[%emt 0:02:17][%mdl 8192]} (47. Qc6 $17) 47... b5 $19 {[%emt 0:00:45][%cal Bb6b5,Bb5b4,Bb4b3][%mdl 32] Strongly threatening ...b4.} 48. h5 {[%emt 0:00:08]} gxh5+ {[%emt 0:01:01]} 49. Kxh5 {[%emt 0:02:11]} b4 {[%emt 0:00:04] White must now prevent ...Qb5.} 50. Qd1 {[%emt 0:00:59]} Qb6 {[%emt 0:00:36] ( -> ...b3)} 51. Qb3 {[%emt 0:02:06]} Qb5 {[%emt 0:00:06] Black mates.} 52. Kg5 {[%emt 0:00:29]} Qc4 {[%emt 0:00:39]} 53. Qd1 {[%emt 0:01:49]} b3 {[%emt 0:00:49]} 54. Qh5 {[%emt 0:02:43]} Qc2 {[%emt 0:00:28]} 55. Qh6+ {[%emt 0:00:35]} Kg8 {[%emt 0:00:05]} 56. Kh4 {[%emt 0:01:00]} Qh7 {[%emt 0:00:12] Weighted Error Value: White=0.50/Black=0.10 (very precise)} 0-1

[Event "Oceania Zonal Open 2023"]
[Site "Melbourne"]
[Date "2023.01.26"]
[Round "6.7"]
[White "Kelly, Adam"]
[Black "Liu, Yi"]
[Result "0-1"]
[ECO "D30"]
[WhiteElo "2006"]
[BlackElo "2303"]
[Annotator "TA"]
[PlyCount "67"]
[EventDate "2023.01.09"]
[EventType "swiss"]
[EventCountry "AUS"]
[SourceTitle "playchess.com"]
[Source "ChessBase"]
[SourceQuality "1"]
[TimeControl "5400+30"]

{[%evp 9,67,0,0,0,3,2,33,28,30,0,-11,-60,-66,-85,-65,-66,-27,-19,-27,-28,-22,-8,0,-50,0,0,0,0,0,0,0,0,0,-86,-79,-84,-82,-125,-71,-262,-304,-249,-260,-266,-252,-528,-519,-880,-874,-933,-902,-1783,-1736,-1819,-1699,-6179,-6179,-6179,-6127,-29992]} 1. d4 {[%emt 0:00:02]} d5 {[%emt 0:00:04]} 2. c4 {[%emt 0:00:06]} e6 {[%emt 0:00:01]} 3. Nf3 {[%emt 0:00:06]} c6 {[%emt 0:00:05]} 4. g3 {[%emt 0:00:04]} dxc4 {[%emt 0:00:27]} 5. Bg2 {[%emt 0:00:08]} b5 {[%emt 0:00:03]} 6. Ne5 {[%emt 0:00:07] D30: Queen's Gambit Declined: Systems without Nc3.} Bb7 {[%emt 0:00:21]} 7. O-O {[%emt 0:00:27]} Nd7 {[%emt 0:01:29]} 8. Nc3 {[%emt 0:05:19] White is slightly better.} (8. Nxc6 Qb6 9. Ne5 (9. d5 exd5 10. Nd4 Bc5 $15) 9... Bxg2 10. Kxg2 Rd8 $11) 8... a6 {[%emt 0:09:23] [#]} 9. Ne4 $146 {[%emt 0:07:22][%cal Oe5f7]} (9. Nxc6 $5 Qc8 10. d5 $14) ({Predecessor:} 9. Nxc6 Qb6 10. Be3 Ngf6 11. d5 Bc5 12. dxe6 fxe6 13. Bxc5 Qxc5 {½-½ Can,E (2606)-Adhiban,B (2598) Novi Sad Serbia op-A 2022 (5)}) 9... Ngf6 {[%emt 0:02:05]} 10. b3 {[%emt 0:01:35]} (10. Nxf6+ $11 Nxf6 11. b3 (11. Bxc6+ Bxc6 12. Nxc6 Qc7 $15) (11. Nxc6 Qb6 $15)) 10... Nxe4 $15 {[%emt 0:03:11]} 11. Bxe4 {[%emt 0:00:55]} Nxe5 {[%emt 0:01:24]} 12. dxe5 {[%emt 0:00:09]} Qxd1 {[%emt 0:02:03]} 13. Rxd1 {[%emt 0:00:02]} c3 {[%emt 0:00:07]} 14. a3 {[%emt 0:08:11]} a5 {[%emt 0:00:31]} 15. Be3 {[%emt 0:01:00] Prevents Bc5} Be7 {[%emt 0:01:05]} 16. Rdc1 {[%emt 0:00:48]} ({White should play} 16. Kf1 $11) 16... b4 {[%emt 0:00:45]} (16... f5 $15 17. exf6 Bxf6) 17. axb4 $11 {[%emt 0:00:37]} axb4 {[%emt 0:00:31]} 18. Rxa8+ {[%emt 0:00:10]} Bxa8 {[%emt 0:00:01]} 19. Ra1 $1 {[%emt 0:00:10]} O-O $1 {[%emt 0:00:20]} 20. Ra7 {[%emt 0:01:37]} Re8 {[%emt 0:00:13]} 21. Rc7 {[%emt 0:01:10]} (21. Kf1 $11 {remains equal.}) 21... f5 $17 {[%emt 0:09:31]} 22. exf6 {[%emt 0:04:39]} gxf6 {[%emt 0:05:17][%cal Oc6c5]} 23. Bf3 {[%emt 0:16:59][%cal Of3h5] [#] aiming for Bh5!} Bf8 {[%emt 0:22:32]} (23... c5 $142 $1 {Strongly threatening ...Bd6.} 24. Bxa8 (24. Bxc5 $2 {loses.} Bxc5 25. Rxc5 Bxf3 $19) 24... Rxa8 25. Rxe7 c4) 24. Bh5 $2 {[%emt 0:15:39] Loses the game.} (24. Ra7 $17 {was the only defense.}) 24... Rd8 $19 {[%emt 0:03:27][%cal Oc6c5] And now ...c5! would win.} 25. Bf7+ {[%emt 0:00:27]} Kh8 {[%emt 0:00:22][%cal Oc6c5] Threatens to win with ...c5!} 26. Bxe6 {[%emt 0:00:38] [#]} c5 $1 {[%emt 0:01:08][%cal Rd8d1]} 27. f3 $2 {[%emt 0:00:32]} (27. f4 Re8 28. f5) 27... Re8 {[%emt 0:11:45] Black is clearly winning.} 28. Kf2 {[%emt 0:12:35]} (28. Rc8 $142 Rxc8 29. Bxc8) 28... Rxe6 {[%emt 0:00:53]} 29. Rc8 {[%emt 0:00:18] [#]} Kg7 $1 {[%emt 0:00:56]} 30. Rxa8 {[%emt 0:00:08] [#]} (30. g4 Bc6) 30... c4 $1 {[%emt 0:00:13][%mdl 512]} 31. bxc4 {[%emt 0:01:11]} (31. Ra7+ Kg6) 31... b3 {[%emt 0:00:06][%cal Oe6e3] White must now prevent ...Rxe3!} 32. Rb8 {[%emt 0:01:06] [#]} Rxe3 $1 {[%emt 0:02:45][%mdl 576] Promotion} 33. Kxe3 {[%emt 0:00:25]} c2 {[%emt 0:00:02]} 34. Rxf8 {[%emt 0:03:38] Weighted Error Value: White=1.06/Black=0.07 (flawless)} 0-1

[Event "Oceania Zonal Open 2023"]
[Site "Melbourne"]
[Date "2023.01.26"]
[Round "6.7"]
[White "Koh, Cedric"]
[Black "Croad, Nicolas"]
[Result "0-1"]
[ECO "D38"]
[WhiteElo "1970"]
[BlackElo "2218"]
[Annotator "TA"]
[PlyCount "86"]
[EventDate "2023.01.09"]
[EventType "swiss"]
[EventCountry "AUS"]
[SourceTitle "playchess.com"]
[Source "ChessBase"]
[SourceQuality "1"]
[TimeControl "5400+30"]

{[%evp 12,86,18,23,26,20,25,9,46,43,61,59,117,116,114,110,123,115,115,108,111,94,107,104,109,95,92,68,66,53,96,75,79,52,109,96,179,-44,-47,-513,-482,-1068,-1042,-1054,-1012,-839,-513,-512,-512,-489,-493,-29988,-121,-29979,-762,-29985,-29986,-29987,-1622,-1248,-1170,-29985,-5302,-29993,-29993,-29993,-29992,-29997,-29991,-29992,-29993,-29989,-29990,-29990,-6108,-29995,-29996]} 1. d4 {[%emt 19:17:24]} Nf6 {[%emt 0:00:05]} 2. c4 {[%emt 0:00:04]} e6 {[%emt 0:00:06]} 3. Nf3 {[%emt 0:00:08]} d5 {[%emt 0:00:05]} 4. Nc3 {[%emt 0:00:05]} Bb4 {[%emt 0:00:07]} 5. cxd5 {[%emt 0:00:06]} exd5 {[%emt 0:00:04]} 6. Bg5 {[%emt 0:00:05]} h6 {[%emt 0:00:09]} 7. Bh4 {[%emt 0:00:11]} O-O {[%emt 0:01:46] D38: Queen's Gambit Declined: Ragozin Defence (4 Nf3 Bb4).} 8. e3 {[%emt 0:02:23]} Bf5 {[%emt 0:04:05]} 9. Qb3 {[%emt 0:00:42]} c5 {[%emt 0:03:21] The position is equal.} 10. dxc5 {[%emt 0:00:48]} Nc6 {[%emt 0:02:28]} 11. Bb5 {[%emt 0:01:46] [#]} g5 $146 {[%emt 0:05:45]} (11... Bxc5 $14 12. Bxf6 Qxf6) ({Predecessor:} 11... Bxc5 12. Bxf6 Qxf6 13. Nxd5 Qd8 14. O-O Be4 15. Rfd1 Bxf3 16. gxf3 Qg5+ 17. Kh1 Qh5 {0-1 Velten,P (2482)-Xu,Y (2527) Cappelle Online Blitz op 2021 (10)}) 12. Bxc6 $16 {[%emt 0:09:54]} Bxc3+ {[%emt 0:00:06]} 13. Qxc3 {[%emt 0:01:21]} bxc6 {[%emt 0:00:19]} 14. Bg3 {[%emt 0:02:07]} Ne4 {[%emt 0:02:50]} 15. Qa3 {[%emt 0:00:17]} Re8 {[%emt 0:04:21]} 16. O-O {[%emt 0:07:32]} Qf6 {[%emt 0:04:33]} 17. Nd4 {[%emt 0:02:12]} Bd7 {[%emt 0:00:47]} 18. Bc7 {[%emt 0:05:38]} h5 {[%emt 0:06:43]} 19. Ba5 {[%emt 0:10:12] Hoping for f3.} g4 {[%emt 0:02:49]} 20. f3 {[%emt 0:13:16]} gxf3 {[%emt 0:00:41]} 21. Rxf3 {[%emt 0:00:13]} (21. gxf3 $2 Qg7+ 22. Kh1 Bh3 23. fxe4 Qg2#) 21... Qg5 {[%emt 0:07:24]} 22. h3 {[%emt 0:17:01] Repels Bg4} Qg6 {[%emt 0:01:05]} (22... Kh8 $14 23. Rc1 Qg6) 23. Kh2 {[%emt 0:04:29]} Bg4 {[%emt 0:04:23]} 24. Rf4 $2 {[%emt 0:01:36]} (24. hxg4 $18 hxg4 25. Rf4 (25. Rf5 Qh7+ 26. Kg1 g3 $14)) 24... Bxh3 $1 $15 {[%emt 0:00:24][%csl Gh3][%cal Rg6g2]} 25. g4 {[%emt 0:05:58][%mdl 8192] Black converts the advantage convincingly.} (25. gxh3 {is a self mate.} Qg3+ 26. Kh1 Qxh3+ 27. Kg1 Kh8 28. Rxe4 Rg8+) ({White must play} 25. Rg1 $1 $15 Bd7 26. Kh1) 25... hxg4 $19 {[%emt 0:04:26] And now ...Re5 would win.} ({Stronger than} 25... Bxg4 26. Rg1 $17) 26. Nf5 {[%emt 0:08:53]} (26. Kg1 $142 Ng5 27. Rd1 Nf3+ 28. Kf2 Nxd4 29. Rfxd4 g3+ 30. Kg1) 26... Re5 {[%emt 0:01:36]} 27. Ng3 {[%emt 0:00:52]} Rae8 {[%emt 0:02:38] ...Nxg3 would be deadly.} 28. Re1 {[%emt 0:02:23]} Nxg3 {[%emt 0:07:51]} 29. Kxg3 {[%emt 0:00:05]} Qc2 {[%emt 0:00:17] Prevents e4} 30. Rf2 {[%emt 0:00:42] Dodges Qg2+. White is weak on the light squares} Qe4 {[%emt 0:00:31] ( -> ...Rh5)} 31. Bc7 {[%emt 0:01:52]} (31. Qc3 $19 Bf1 32. Qd4 (32. Rexf1 $2 {loses.} Qh7 $19) 32... Qxd4 33. exd4 Rxe1 34. Bxe1 Rxe1 35. Kxg4) 31... Rf5 $2 {[%emt 0:02:36]} (31... Rh5 {mates} 32. Rc1 Qe7 33. Rd2 Qh4+ 34. Kh2 Bf1+ 35. Kg1 Qh1+ 36. Kf2 g3+ {[%mdl 64] Decoy} 37. Kxg3 Rh3+ {[%mdl 64] Skewer} 38. Kg4 Qf3+ 39. Kg5 Rh5#) 32. Bf4 $2 {[%emt 0:00:06][%mdl 8192]} (32. Rxf5 $17 Qxf5 33. e4 dxe4 34. Qe3) 32... d4 {[%emt 0:02:03]} (32... Rh5 $142 33. Rg1 Qe7 34. Rfg2 Qh4+ 35. Kh2 Bxg2+ 36. Kxg2 Qh3+ 37. Kf2 Qf3+ 38. Ke1 Qxf4 39. Kd1 Rxe3 40. Qxe3 Qxe3 41. Re1 Qd3+ 42. Kc1 Rh2 43. Re8+ Kh7 44. Rh8+ Kxh8 45. b4 Qf1#) 33. Ree2 {[%emt 0:00:50]} d3 {[%emt 0:04:06]} 34. Re1 {[%emt 0:00:10]} Rd8 {[%emt 0:04:52]} (34... Rh5 $142 35. Qc3 Qe7 36. Bg5 Qxg5 37. Qf6 Rxe3+ 38. Rf3 Rxf3+ 39. Qxf3 gxf3+ 40. Kxf3 Bg2+ 41. Kf2 Qf4+ 42. Kg1 Be4 43. Rxe4 Qg3+ 44. Kf1 Rh1#) 35. Qc3 {[%emt 0:01:02]} Rdd5 {[%emt 0:01:33][%cal Oh3g2] Threatens to win with ...Bg2!} 36. b4 {[%emt 0:02:15] [#]} d2 $1 {[%emt 0:01:46][%mdl 512]} 37. Rxd2 {[%emt 0:00:28]} (37. Rd1 Rd3) 37... Qf3+ {[%emt 0:02:30]} 38. Kh2 {[%emt 0:00:06]} Rxf4 {[%emt 0:00:16]} 39. Qc2 {[%emt 0:00:56]} Rc4 {[%emt 0:02:21]} 40. Qb2 {[%emt 0:00:44]} g3+ {[%emt 0:00:46]} 41. Kg1 {[%emt 0:00:06]} Be6 {[%emt 0:01:59]} 42. Rg2 {[%emt 0:00:35]} Rh4 {[%emt 0:01:35]} (42... Rd1 $142 43. Qf2 Qxf2+ {[%mdl 64] Remove Defender} 44. Rxf2 Rxe1+ 45. Kg2 Bd5+ 46. e4 gxf2 47. Kxf2 Rexe4 48. b5 Rc3 {[%mdl 64] Discovered Attack} 49. bxc6 Bc4 50. Kg1 Re2 51. Kh1 Rc1#) 43. b5 {[%emt 0:00:48]} Rdh5 {[%emt 0:00:18] A brilliant game!   Weighted Error Value: White=1.06/Black=0.75} 0-1